[Event "Early-Titled-Tuesday-Blitz-June-18-2024"]
[Site "Chess.com"]
[Date "2024.06.18"]
[Round "11"]
[White "Fandorine"]
[Black "Rurep26"]
[Result "0-1"]
[WhiteElo "2925"]
[BlackElo "2747"]
[TimeControl "180+1"]
[EndTime "10:08:40 PDT"]
[Termination "Rurep26 won by resignation"]

1. d4 {[%clk 0:03:00.9]} 1... Nf6 {[%clk 0:02:59.1]} 2. c4 {[%clk 0:03:01.3]}
2... e6 {[%clk 0:02:59.2]} 3. g3 {[%clk 0:03:00.9]} 3... Bb4+ {[%clk 0:02:56.2]}
4. Nd2 {[%clk 0:02:58.6]} 4... a5 {[%clk 0:02:57.1]} 5. Bg2 {[%clk 0:02:58.3]}
5... O-O {[%clk 0:02:55.5]} 6. Nf3 {[%clk 0:02:58.7]} 6... d6 {[%clk 0:02:54.3]}
7. O-O {[%clk 0:02:58.6]} 7... Bxd2 {[%clk 0:02:53.6]} 8. Qxd2 {[%clk
0:02:53.3]} 8... Qe7 {[%clk 0:02:54.5]} 9. Qc2 {[%clk 0:02:50]} 9... e5 {[%clk
0:02:53.9]} 10. Bg5 {[%clk 0:02:49.3]} 10... Nc6 {[%clk 0:02:50.9]} 11. Rfd1
{[%clk 0:02:46.9]} 11... Bg4 {[%clk 0:02:49.1]} 12. d5 {[%clk 0:02:34.3]} 12...
Bxf3 {[%clk 0:02:31.4]} 13. exf3 {[%clk 0:02:29.4]} 13... Nd4 {[%clk 0:02:31.9]}
14. Qd3 {[%clk 0:02:27.1]} 14... h6 {[%clk 0:02:31.2]} 15. Be3 {[%clk
0:02:25.3]} 15... Rfe8 {[%clk 0:02:21.2]} 16. f4 {[%clk 0:02:20.2]} 16... Ng4
{[%clk 0:02:14.5]} 17. Bxd4 {[%clk 0:02:17.3]} 17... exd4 {[%clk 0:02:12.8]} 18.
h3 {[%clk 0:02:09.8]} 18... Nf6 {[%clk 0:02:05.7]} 19. Qxd4 {[%clk 0:02:08.8]}
19... b6 {[%clk 0:01:51]} 20. Bf3 {[%clk 0:02:04.4]} 20... Qd7 {[%clk
0:01:47.4]} 21. Kg2 {[%clk 0:02:03]} 21... Qf5 {[%clk 0:01:40]} 22. Rac1 {[%clk
0:01:58]} 22... Re7 {[%clk 0:01:36.8]} 23. Re1 {[%clk 0:01:52]} 23... Rae8
{[%clk 0:01:35.4]} 24. Rxe7 {[%clk 0:01:51.9]} 24... Rxe7 {[%clk 0:01:36.3]} 25.
b3 {[%clk 0:01:50.3]} 25... h5 {[%clk 0:01:32.6]} 26. a3 {[%clk 0:01:46.3]}
26... Nd7 {[%clk 0:01:19.8]} 27. b4 {[%clk 0:01:44.6]} 27... axb4 {[%clk
0:01:20.7]} 28. axb4 {[%clk 0:01:45]} 28... Nf8 {[%clk 0:01:14.8]} 29. c5 {[%clk
0:01:38.1]} 29... bxc5 {[%clk 0:01:15.7]} 30. bxc5 {[%clk 0:01:38.1]} 30... h4
{[%clk 0:01:14.2]} 31. cxd6 {[%clk 0:01:36]} 31... cxd6 {[%clk 0:01:15.1]} 32.
g4 {[%clk 0:01:33.7]} 32... Qd7 {[%clk 0:01:12.8]} 33. Be4 {[%clk 0:01:28.1]}
33... Qe8 {[%clk 0:01:11.1]} 34. Rc4 {[%clk 0:01:17]} 34... Nd7 {[%clk
0:01:08.3]} 35. Bf3 {[%clk 0:01:07.3]} 35... Nc5 {[%clk 0:01:02.4]} 36. g5
{[%clk 0:00:55.8]} 36... Re1 {[%clk 0:00:58.1]} 37. Rb4 {[%clk 0:00:48.6]} 37...
Rc1 {[%clk 0:00:50.2]} 38. f5 {[%clk 0:00:43.6]} 38... Nd7 {[%clk 0:00:38]} 39.
Qxh4 {[%clk 0:00:38.2]} 39... Qe1 {[%clk 0:00:35.4]} 40. Kg3 {[%clk 0:00:22.4]}
40... Qg1+ {[%clk 0:00:35.2]} 41. Bg2 {[%clk 0:00:22.9]} 41... Rc3+ {[%clk
0:00:35.1]} 42. f3 {[%clk 0:00:23.4]} 42... Rc2 {[%clk 0:00:33.5]} 43. Qe4
{[%clk 0:00:06.6]} 43... Rxg2+ {[%clk 0:00:26.6]} 44. Kh4 {[%clk 0:00:07.1]}
44... Rxg5 {[%clk 0:00:17.6]} 45. Qf4 {[%clk 0:00:05.8]} 45... Rg2 {[%clk
0:00:06.9]} 46. Qxd6 {[%clk 0:00:05]} 46... Qe1+ {[%clk 0:00:06.3]} 47. Kh5
{[%clk 0:00:04.8]} 47... Nf6+ {[%clk 0:00:06.9]} 48. Qxf6 {[%clk 0:00:03.2]}
48... gxf6 {[%clk 0:00:07.8]} 49. Kh6 {[%clk 0:00:04.1]} 49... Qxb4 {[%clk
0:00:06.6]} 0-1

[Event "Early-Titled-Tuesday-Blitz-June-18-2024"]
[Site "Chess.com"]
[Date "2024.06.18"]
[Round "11"]
[White "TimurDushatov"]
[Black "UF_10"]
[Result "1-0"]
[WhiteElo "2408"]
[BlackElo "2541"]
[TimeControl "180+1"]
[EndTime "10:08:40 PDT"]
[Termination "TimurDushatov won by checkmate"]

1. e4 {[%clk 0:03:00.9]} 1... e6 {[%clk 0:02:59.9]} 2. d4 {[%clk 0:02:59.5]}
2... d5 {[%clk 0:03:00.2]} 3. Nd2 {[%clk 0:02:47.2]} 3... h6 {[%clk 0:02:59.5]}
4. c3 {[%clk 0:02:36.9]} 4... Nf6 {[%clk 0:02:59]} 5. Bd3 {[%clk 0:02:36.8]}
5... c5 {[%clk 0:02:54.1]} 6. Ngf3 {[%clk 0:02:35.7]} 6... Nc6 {[%clk
0:02:53.2]} 7. O-O {[%clk 0:02:32.9]} 7... Be7 {[%clk 0:02:51.4]} 8. Qe2 {[%clk
0:02:08.2]} 8... O-O {[%clk 0:02:45.4]} 9. dxc5 {[%clk 0:02:00]} 9... Bxc5
{[%clk 0:02:45]} 10. a3 {[%clk 0:01:37.3]} 10... Re8 {[%clk 0:02:37.6]} 11. b4
{[%clk 0:01:35.2]} 11... Bb6 {[%clk 0:02:29.8]} 12. Bb2 {[%clk 0:01:30.1]} 12...
Bd7 {[%clk 0:02:28]} 13. c4 {[%clk 0:01:06.7]} 13... Rc8 {[%clk 0:02:12.7]} 14.
c5 {[%clk 0:00:51]} 14... Bc7 {[%clk 0:02:11.7]} 15. Rad1 {[%clk 0:00:45.6]}
15... Nh5 {[%clk 0:02:02.5]} 16. g3 {[%clk 0:00:43.3]} 16... Nf6 {[%clk
0:01:43]} 17. Rfe1 {[%clk 0:00:37.4]} 17... a6 {[%clk 0:01:32]} 18. Bc3 {[%clk
0:00:34.6]} 18... Na7 {[%clk 0:01:30.6]} 19. Ne5 {[%clk 0:00:27.2]} 19... Bb5
{[%clk 0:01:26.8]} 20. exd5 {[%clk 0:00:19.4]} 20... Nxd5 {[%clk 0:01:25.4]} 21.
Bb2 {[%clk 0:00:15.7]} 21... Ba4 {[%clk 0:01:17.6]} 22. Rc1 {[%clk 0:00:14.9]}
22... Nc6 {[%clk 0:01:13.7]} 23. Qe4 {[%clk 0:00:14.2]} 23... Nf6 {[%clk
0:01:11.9]} 24. Nxc6 {[%clk 0:00:12.4]} 24... Bxc6 {[%clk 0:01:09.2]} 25. Qe3
{[%clk 0:00:11.7]} 25... Qd5 {[%clk 0:01:07]} 26. Ne4 {[%clk 0:00:11.7]} 26...
Ng4 {[%clk 0:01:00.6]} 27. Qe2 {[%clk 0:00:11.5]} 27... f5 {[%clk 0:01:00.9]}
28. h3 {[%clk 0:00:09.1]} 28... fxe4 {[%clk 0:00:59.4]} 29. Bc4 {[%clk
0:00:08.5]} 29... Qg5 {[%clk 0:00:53.8]} 30. Qxg4 {[%clk 0:00:08.4]} 30... Qxg4
{[%clk 0:00:49.8]} 31. hxg4 {[%clk 0:00:09.3]} 31... Bd5 {[%clk 0:00:50.7]} 32.
Bf1 {[%clk 0:00:07.4]} 32... Rf8 {[%clk 0:00:50.3]} 33. Bg2 {[%clk 0:00:06.8]}
33... e3 {[%clk 0:00:49.6]} 34. Rxe3 {[%clk 0:00:07.1]} 34... Rcd8 {[%clk
0:00:48.2]} 35. Bf1 {[%clk 0:00:04]} 35... Rd7 {[%clk 0:00:46]} 36. Bd3 {[%clk
0:00:03.9]} 36... Bd8 {[%clk 0:00:46.2]} 37. Be4 {[%clk 0:00:02.4]} 37... Bg5
{[%clk 0:00:46.3]} 38. f4 {[%clk 0:00:02.7]} 38... Bf6 {[%clk 0:00:44.4]} 39.
Bxf6 {[%clk 0:00:02.2]} 39... Rxf6 {[%clk 0:00:43.6]} 40. Bxd5 {[%clk
0:00:03.1]} 40... exd5 {[%clk 0:00:44.5]} 41. Rce1 {[%clk 0:00:03.8]} 41... Rg6
{[%clk 0:00:43.5]} 42. Rd3 {[%clk 0:00:04.3]} 42... Rxg4 {[%clk 0:00:43.5]} 43.
Kf2 {[%clk 0:00:04.7]} 43... Rg6 {[%clk 0:00:40.6]} 44. Red1 {[%clk 0:00:04.9]}
44... a5 {[%clk 0:00:40.2]} 45. Rxd5 {[%clk 0:00:04.6]} 45... Re7 {[%clk
0:00:40.5]} 46. Rd7 {[%clk 0:00:03.2]} 46... Re4 {[%clk 0:00:39.5]} 47. Rxb7
{[%clk 0:00:03.1]} 47... axb4 {[%clk 0:00:39.5]} 48. axb4 {[%clk 0:00:04]} 48...
Ra6 {[%clk 0:00:39.5]} 49. Kf3 {[%clk 0:00:04.5]} 49... Rc4 {[%clk 0:00:39]} 50.
Rdd7 {[%clk 0:00:04]} 50... Ra3+ {[%clk 0:00:38.6]} 51. Kg4 {[%clk 0:00:04.4]}
51... h5+ {[%clk 0:00:37.6]} 52. Kh4 {[%clk 0:00:04]} 52... Rcc3 {[%clk
0:00:37.1]} 53. Rxg7+ {[%clk 0:00:03.5]} 53... Kf8 {[%clk 0:00:38]} 54. Rgc7
{[%clk 0:00:03.5]} 54... Rc1 {[%clk 0:00:36.9]} 55. Rc8# {[%clk 0:00:03.8]} 1-0

[Event "Early-Titled-Tuesday-Blitz-June-18-2024"]
[Site "Chess.com"]
[Date "2024.06.18"]
[Round "11"]
[White "RandomNoob04"]
[Black "jguerramzllo"]
[Result "1-0"]
[WhiteElo "2815"]
[BlackElo "2682"]
[TimeControl "180+1"]
[EndTime "10:08:41 PDT"]
[Termination "RandomNoob04 won on time"]

1. e4 {[%clk 0:03:00.9]} 1... e5 {[%clk 0:02:57.6]} 2. d4 {[%clk 0:03:01.2]}
2... exd4 {[%clk 0:02:57.2]} 3. Qxd4 {[%clk 0:03:02]} 3... Nf6 {[%clk
0:02:56.7]} 4. e5 {[%clk 0:03:01.6]} 4... Nc6 {[%clk 0:02:57]} 5. Qe3 {[%clk
0:03:02]} 5... Ng4 {[%clk 0:02:54.7]} 6. Qe4 {[%clk 0:03:02.3]} 6... d5 {[%clk
0:02:43.7]} 7. exd6+ {[%clk 0:03:03.2]} 7... Be6 {[%clk 0:02:43.4]} 8. Ba6
{[%clk 0:03:03.9]} 8... Nf6 {[%clk 0:01:36.8]} 9. Qa4 {[%clk 0:03:04.1]} 9...
bxa6 {[%clk 0:01:31.7]} 10. Qxc6+ {[%clk 0:03:03.9]} 10... Bd7 {[%clk
0:01:32.4]} 11. Qxc7 {[%clk 0:03:03.9]} 11... Rc8 {[%clk 0:00:58.9]} 12. Qxd8+
{[%clk 0:03:03.5]} 12... Kxd8 {[%clk 0:00:59.8]} 13. Nc3 {[%clk 0:03:02.7]}
13... Bxd6 {[%clk 0:00:59.3]} 14. Bg5 {[%clk 0:02:58.9]} 14... Re8+ {[%clk
0:00:55.3]} 15. Nge2 {[%clk 0:02:59.2]} 15... Kc7 {[%clk 0:00:43.9]} 16. Bxf6
{[%clk 0:02:28.2]} 16... gxf6 {[%clk 0:00:43.6]} 17. O-O-O {[%clk 0:02:19.9]}
17... Bc6 {[%clk 0:00:40.7]} 18. f3 {[%clk 0:02:18.4]} 18... Be5 {[%clk
0:00:37.8]} 19. Nd4 {[%clk 0:02:11.2]} 19... Bb7 {[%clk 0:00:32.8]} 20. Nf5
{[%clk 0:02:04.5]} 20... h5 {[%clk 0:00:29.5]} 21. h4 {[%clk 0:01:45]} 21...
Bxc3 {[%clk 0:00:27.6]} 22. bxc3 {[%clk 0:01:44.1]} 22... Re6 {[%clk 0:00:25.5]}
23. Ng7 {[%clk 0:01:37.5]} 23... Re5 {[%clk 0:00:24.4]} 24. Rhe1 {[%clk
0:01:35.3]} 24... Rg8 {[%clk 0:00:22.5]} 25. Rxe5 {[%clk 0:01:23.9]} 25... fxe5
{[%clk 0:00:23.4]} 26. Nxh5 {[%clk 0:01:24.8]} 26... Rxg2 {[%clk 0:00:23.3]} 27.
Nf6 {[%clk 0:01:15.7]} 27... Bxf3 {[%clk 0:00:22.1]} 28. Rd7+ {[%clk 0:01:15.6]}
28... Kb6 {[%clk 0:00:22.5]} 29. Rxf7 {[%clk 0:01:15.4]} 29... e4 {[%clk
0:00:22.1]} 30. Re7 {[%clk 0:01:13.2]} 30... Rh2 {[%clk 0:00:21.6]} 31. Nxe4
{[%clk 0:01:11.4]} 31... Rxh4 {[%clk 0:00:20.1]} 32. Nd6 {[%clk 0:01:05.5]}
32... Bg4 {[%clk 0:00:18.1]} 33. Kb2 {[%clk 0:00:56.6]} 33... Rh2 {[%clk
0:00:17.3]} 34. Kb3 {[%clk 0:00:51.4]} 34... Bd1 {[%clk 0:00:15.1]} 35. Nc4+
{[%clk 0:00:51.4]} 35... Kb5 {[%clk 0:00:14.3]} 36. Ne3 {[%clk 0:00:51.3]} 36...
Bf3 {[%clk 0:00:14.3]} 37. Rxa7 {[%clk 0:00:50.4]} 37... Re2 {[%clk 0:00:14.6]}
38. Re7 {[%clk 0:00:49.6]} 38... Kc5 {[%clk 0:00:12.8]} 39. Re5+ {[%clk
0:00:48.8]} 39... Kc6 {[%clk 0:00:11]} 40. Nc4 {[%clk 0:00:46.1]} 40... Rh2
{[%clk 0:00:09.3]} 41. Ra5 {[%clk 0:00:44.1]} 41... Kb7 {[%clk 0:00:08.4]} 42.
Rf5 {[%clk 0:00:41.5]} 42... Be4 {[%clk 0:00:07.3]} 43. Nd6+ {[%clk 0:00:41.2]}
43... Kc6 {[%clk 0:00:07.7]} 44. Nxe4 {[%clk 0:00:42.1]} 44... Re2 {[%clk
0:00:06.5]} 45. Nf2 {[%clk 0:00:40.4]} 45... Re1 {[%clk 0:00:06]} 46. Nd3 {[%clk
0:00:40.1]} 46... Rb1+ {[%clk 0:00:05.8]} 47. Kc4 {[%clk 0:00:40.7]} 47... Ra1
{[%clk 0:00:05.7]} 48. Ra5 {[%clk 0:00:40.3]} 48... Kb6 {[%clk 0:00:06.3]} 49.
Ra3 {[%clk 0:00:40.6]} 49... Rd1 {[%clk 0:00:06.1]} 50. Nb4 {[%clk 0:00:40.1]}
50... Rd2 {[%clk 0:00:05.5]} 51. Rxa6+ {[%clk 0:00:39.6]} 51... Kb7 {[%clk
0:00:06.2]} 52. Rh6 {[%clk 0:00:39.6]} 52... Rg2 {[%clk 0:00:05.9]} 53. a4
{[%clk 0:00:36.5]} 53... Rg5 {[%clk 0:00:05.2]} 54. Rh7+ {[%clk 0:00:34.1]}
54... Kb6 {[%clk 0:00:05.1]} 55. Nd5+ {[%clk 0:00:33.4]} 55... Ka6 {[%clk
0:00:05.5]} 56. Rd7 {[%clk 0:00:29.5]} 56... Rh5 {[%clk 0:00:04.8]} 57. Kc5
{[%clk 0:00:29]} 57... Rh4 {[%clk 0:00:03]} 58. Nb4+ {[%clk 0:00:26.9]} 58...
Rxb4 {[%clk 0:00:01.9]} 59. Kxb4 {[%clk 0:00:27.8]} 1-0

[Event "Early-Titled-Tuesday-Blitz-June-18-2024"]
[Site "Chess.com"]
[Date "2024.06.18"]
[Round "11"]
[White "Guldona_2007"]
[Black "zverr1"]
[Result "0-1"]
[WhiteElo "2292"]
[BlackElo "2537"]
[TimeControl "180+1"]
[EndTime "10:08:45 PDT"]
[Termination "zverr1 won by resignation"]

1. e4 {[%clk 0:03:00.6]} 1... c5 {[%clk 0:02:58.2]} 2. Nf3 {[%clk 0:03:00.4]}
2... Nc6 {[%clk 0:02:58.8]} 3. d4 {[%clk 0:03:00.6]} 3... cxd4 {[%clk
0:02:59.7]} 4. Nxd4 {[%clk 0:03:01.2]} 4... Nf6 {[%clk 0:03:00.6]} 5. Nc3 {[%clk
0:03:01.6]} 5... e5 {[%clk 0:03:01.3]} 6. Ndb5 {[%clk 0:03:01.3]} 6... d6 {[%clk
0:03:01.7]} 7. Bg5 {[%clk 0:03:01.7]} 7... a6 {[%clk 0:03:01.5]} 8. Na3 {[%clk
0:02:59.9]} 8... b5 {[%clk 0:03:00.6]} 9. Nd5 {[%clk 0:03:00.5]} 9... Be7 {[%clk
0:03:00.6]} 10. Bxf6 {[%clk 0:03:00.9]} 10... Bxf6 {[%clk 0:03:01.5]} 11. c3
{[%clk 0:03:01.2]} 11... Rb8 {[%clk 0:03:00.9]} 12. Nc2 {[%clk 0:02:59]} 12...
Bg5 {[%clk 0:03:01.4]} 13. g3 {[%clk 0:02:58.7]} 13... O-O {[%clk 0:02:59.4]}
14. Bg2 {[%clk 0:02:58.6]} 14... a5 {[%clk 0:02:59.6]} 15. a3 {[%clk 0:02:57.1]}
15... Be6 {[%clk 0:02:58.2]} 16. Nce3 {[%clk 0:02:49.5]} 16... Ne7 {[%clk
0:02:52.6]} 17. Nxe7+ {[%clk 0:02:43.6]} 17... Qxe7 {[%clk 0:02:49.7]} 18. Nd5
{[%clk 0:02:42.5]} 18... Qb7 {[%clk 0:02:49]} 19. O-O {[%clk 0:02:36.8]} 19...
Bxd5 {[%clk 0:02:47.1]} 20. exd5 {[%clk 0:02:27.6]} 20... f5 {[%clk 0:02:38.7]}
21. f4 {[%clk 0:02:19.3]} 21... Bf6 {[%clk 0:02:20.6]} 22. fxe5 {[%clk
0:02:18.8]} 22... Bxe5 {[%clk 0:02:19.7]} 23. Qd3 {[%clk 0:02:18.3]} 23... g6
{[%clk 0:02:17.3]} 24. Kh1 {[%clk 0:01:53.8]} 24... Qb6 {[%clk 0:02:12.4]} 25.
Qd2 {[%clk 0:01:45.5]} 25... Qc5 {[%clk 0:02:11.4]} 26. Rac1 {[%clk 0:01:40.7]}
26... Kg7 {[%clk 0:02:02.4]} 27. Qd3 {[%clk 0:01:39.6]} 27... a4 {[%clk
0:01:56.5]} 28. Rfe1 {[%clk 0:01:37.7]} 28... h5 {[%clk 0:01:51.1]} 29. Qe3
{[%clk 0:01:11.6]} 29... Qc7 {[%clk 0:01:37.7]} 30. Qg5 {[%clk 0:01:02.3]} 30...
Rh8 {[%clk 0:01:19.3]} 31. Rf1 {[%clk 0:00:59.8]} 31... Rbf8 {[%clk 0:01:17.3]}
32. Rce1 {[%clk 0:00:57.8]} 32... Rf7 {[%clk 0:00:58.9]} 33. h4 {[%clk
0:00:52.2]} 33... Qc4 {[%clk 0:00:54.2]} 34. Qe3 {[%clk 0:00:44.6]} 34... Qg4
{[%clk 0:00:51.5]} 35. Kh2 {[%clk 0:00:43.7]} 35... Qxh4+ {[%clk 0:00:51.3]} 36.
Kg1 {[%clk 0:00:42.2]} 36... Qxg3 {[%clk 0:00:51]} 37. Qb6 {[%clk 0:00:22]}
37... Qh2+ {[%clk 0:00:42.6]} 38. Kf2 {[%clk 0:00:21.9]} 38... Bg3+ {[%clk
0:00:43]} 39. Kf3 {[%clk 0:00:21.3]} 39... g5 {[%clk 0:00:28.7]} 40. Qd4+ {[%clk
0:00:16.9]} 40... Be5 {[%clk 0:00:17.4]} 41. Rxe5 {[%clk 0:00:15.3]} 41... Qxe5
{[%clk 0:00:17]} 42. Qxe5+ {[%clk 0:00:14.4]} 42... dxe5 {[%clk 0:00:17.9]} 43.
Rd1 {[%clk 0:00:14]} 43... Rd8 {[%clk 0:00:16.3]} 44. Kf2 {[%clk 0:00:13.1]}
44... Kf6 {[%clk 0:00:15.8]} 45. Bf1 {[%clk 0:00:13.1]} 45... Rfd7 {[%clk
0:00:15.8]} 46. Bxb5 {[%clk 0:00:11.9]} 46... Rxd5 {[%clk 0:00:15.9]} 47. Rxd5
{[%clk 0:00:12.4]} 47... Rxd5 {[%clk 0:00:16.8]} 48. Bxa4 {[%clk 0:00:13]} 48...
Rd2+ {[%clk 0:00:17.3]} 49. Ke3 {[%clk 0:00:13.6]} 49... Rxb2 {[%clk 0:00:18.2]}
50. c4 {[%clk 0:00:14]} 50... Ra2 {[%clk 0:00:17.6]} 51. Bb5 {[%clk 0:00:14]}
51... Rxa3+ {[%clk 0:00:18.5]} 52. Kf2 {[%clk 0:00:14.4]} 52... Rc3 {[%clk
0:00:18.8]} 53. Ke2 {[%clk 0:00:14.3]} 53... h4 {[%clk 0:00:19.3]} 0-1

[Event "Early-Titled-Tuesday-Blitz-June-18-2024"]
[Site "Chess.com"]
[Date "2024.06.18"]
[Round "11"]
[White "Resignify"]
[Black "SuperGPatzer"]
[Result "1/2-1/2"]
[WhiteElo "2293"]
[BlackElo "2128"]
[TimeControl "180+1"]
[EndTime "10:08:46 PDT"]
[Termination "Game drawn by stalemate"]

1. e4 {[%clk 0:03:00.9]} 1... c5 {[%clk 0:02:59.3]} 2. Nc3 {[%clk 0:03:00.3]}
2... g5 {[%clk 0:02:57.8]} 3. d3 {[%clk 0:02:58.5]} 3... h6 {[%clk 0:02:57.7]}
4. h4 {[%clk 0:02:57.9]} 4... Bg7 {[%clk 0:02:34.4]} 5. hxg5 {[%clk 0:02:56.2]}
5... hxg5 {[%clk 0:02:35.3]} 6. Rxh8 {[%clk 0:02:55.6]} 6... Bxh8 {[%clk
0:02:36.2]} 7. Qh5 {[%clk 0:02:54.8]} 7... Bxc3+ {[%clk 0:02:29]} 8. bxc3 {[%clk
0:02:53.3]} 8... Qa5 {[%clk 0:02:25.5]} 9. Bd2 {[%clk 0:02:43.9]} 9... c4 {[%clk
0:02:00.9]} 10. Qxg5 {[%clk 0:02:27.3]} 10... Qxg5 {[%clk 0:01:59.4]} 11. Bxg5
{[%clk 0:02:28.2]} 11... cxd3 {[%clk 0:01:59.1]} 12. cxd3 {[%clk 0:02:27.5]}
12... d6 {[%clk 0:01:59.2]} 13. Rb1 {[%clk 0:02:17.8]} 13... Nc6 {[%clk
0:01:58.1]} 14. d4 {[%clk 0:02:05.9]} 14... b6 {[%clk 0:01:45.1]} 15. Nf3 {[%clk
0:01:42.2]} 15... Bd7 {[%clk 0:01:43.9]} 16. Bd3 {[%clk 0:01:28.1]} 16... Rc8
{[%clk 0:01:42.2]} 17. Kd2 {[%clk 0:01:28]} 17... Na5 {[%clk 0:01:40.7]} 18. Rb4
{[%clk 0:01:23.4]} 18... Nf6 {[%clk 0:01:20.4]} 19. Bxf6 {[%clk 0:01:22.4]}
19... exf6 {[%clk 0:01:21.3]} 20. d5 {[%clk 0:01:15.8]} 20... Ke7 {[%clk
0:01:13.1]} 21. Nd4 {[%clk 0:01:15.4]} 21... Rg8 {[%clk 0:01:12.3]} 22. g3
{[%clk 0:01:13.1]} 22... Rh8 {[%clk 0:01:02.7]} 23. Ke3 {[%clk 0:01:00.3]} 23...
Rh1 {[%clk 0:01:01.4]} 24. Rb2 {[%clk 0:00:57.2]} 24... Rc1 {[%clk 0:00:56.5]}
25. Ne2 {[%clk 0:00:55.1]} 25... Re1 {[%clk 0:00:49.3]} 26. Kd2 {[%clk
0:00:54.3]} 26... Ra1 {[%clk 0:00:48.2]} 27. Nc1 {[%clk 0:00:48.4]} 27... Ba4
{[%clk 0:00:47.5]} 28. Rb1 {[%clk 0:00:37.2]} 28... Nc4+ {[%clk 0:00:40.6]} 29.
Ke2 {[%clk 0:00:26.1]} 29... Rxb1 {[%clk 0:00:36.5]} 30. Bxb1 {[%clk 0:00:27]}
30... Na3 {[%clk 0:00:25.3]} 31. Bd3 {[%clk 0:00:27.5]} 31... b5 {[%clk
0:00:24.2]} 32. Nb3 {[%clk 0:00:21.2]} 32... Bxb3 {[%clk 0:00:13.5]} 33. axb3
{[%clk 0:00:20.9]} 33... Nb1 {[%clk 0:00:12.9]} 34. c4 {[%clk 0:00:15.4]} 34...
Nc3+ {[%clk 0:00:10.3]} 35. Kd2 {[%clk 0:00:14.7]} 35... b4 {[%clk 0:00:10.8]}
36. f4 {[%clk 0:00:13]} 36... a5 {[%clk 0:00:08.9]} 37. g4 {[%clk 0:00:10.9]}
37... Na2 {[%clk 0:00:07.7]} 38. Kc2 {[%clk 0:00:10.2]} 38... Nc3 {[%clk
0:00:07.9]} 39. g5 {[%clk 0:00:07.7]} 39... fxg5 {[%clk 0:00:07.5]} 40. fxg5
{[%clk 0:00:08.6]} 40... Kf8 {[%clk 0:00:07.7]} 41. Kd2 {[%clk 0:00:08.6]} 41...
Kg7 {[%clk 0:00:08]} 42. Bc2 {[%clk 0:00:05.4]} 42... Kg8 {[%clk 0:00:03.2]} 43.
Ke3 {[%clk 0:00:05.1]} 43... Kg7 {[%clk 0:00:03.7]} 44. Bd3 {[%clk 0:00:03.6]}
44... Nd1+ {[%clk 0:00:03.4]} 45. Kd4 {[%clk 0:00:03.4]} 45... Nf2 {[%clk
0:00:03.3]} 46. c5 {[%clk 0:00:02.7]} 46... Nxd3 {[%clk 0:00:03.4]} 47. Kxd3
{[%clk 0:00:02.8]} 47... dxc5 {[%clk 0:00:03.8]} 48. Kc4 {[%clk 0:00:02.8]}
48... Kg6 {[%clk 0:00:03.3]} 49. d6 {[%clk 0:00:01.9]} 49... Kxg5 {[%clk
0:00:04.2]} 50. d7 {[%clk 0:00:02.1]} 50... f5 {[%clk 0:00:04.9]} 51. d8=Q+
{[%clk 0:00:03]} 51... Kg4 {[%clk 0:00:04.6]} 52. Qd7 {[%clk 0:00:03.9]} 52...
Kf3 {[%clk 0:00:04.6]} 53. Qxf5+ {[%clk 0:00:03.9]} 53... Ke3 {[%clk 0:00:05.5]}
54. Qxc5+ {[%clk 0:00:04.5]} 54... Kd2 {[%clk 0:00:05.6]} 55. Qxa5 {[%clk
0:00:05]} 55... Kc2 {[%clk 0:00:06.5]} 56. Qxb4 {[%clk 0:00:05.5]} 56... Kb2
{[%clk 0:00:06.9]} 57. Qc5 {[%clk 0:00:06.4]} 57... Ka2 {[%clk 0:00:06.6]} 58.
b4 {[%clk 0:00:07.3]} 58... Ka3 {[%clk 0:00:06.8]} 59. b5+ {[%clk 0:00:08.2]}
59... Ka4 {[%clk 0:00:07.3]} 60. b6 {[%clk 0:00:09.1]} 1/2-1/2

[Event "Early-Titled-Tuesday-Blitz-June-18-2024"]
[Site "Chess.com"]
[Date "2024.06.18"]
[Round "11"]
[White "ThetNaung291"]
[Black "TitarovVasiliYouTube"]
[Result "0-1"]
[WhiteElo "2443"]
[BlackElo "2585"]
[TimeControl "180+1"]
[EndTime "10:08:50 PDT"]
[Termination "TitarovVasiliYouTube won by resignation"]

1. d4 {[%clk 0:02:59.1]} 1... Nf6 {[%clk 0:02:58.9]} 2. c4 {[%clk 0:02:57.9]}
2... d6 {[%clk 0:02:56.5]} 3. Nf3 {[%clk 0:02:56.7]} 3... g6 {[%clk 0:02:56.6]}
4. Nc3 {[%clk 0:02:54]} 4... Bf5 {[%clk 0:02:56.3]} 5. e3 {[%clk 0:02:52]} 5...
Ne4 {[%clk 0:02:55.4]} 6. Nxe4 {[%clk 0:02:48.5]} 6... Bxe4 {[%clk 0:02:55.1]}
7. Bd3 {[%clk 0:02:48.1]} 7... Bxd3 {[%clk 0:02:53.6]} 8. Qxd3 {[%clk
0:02:47.9]} 8... Bg7 {[%clk 0:02:54.2]} 9. O-O {[%clk 0:02:45.1]} 9... O-O
{[%clk 0:02:54.8]} 10. Bd2 {[%clk 0:02:42.7]} 10... c5 {[%clk 0:02:52.1]} 11.
Bc3 {[%clk 0:02:42]} 11... cxd4 {[%clk 0:02:48.3]} 12. Bxd4 {[%clk 0:02:41.5]}
12... Nc6 {[%clk 0:02:45.5]} 13. Bxg7 {[%clk 0:02:40.5]} 13... Kxg7 {[%clk
0:02:46.4]} 14. Rfd1 {[%clk 0:02:39.4]} 14... Qa5 {[%clk 0:02:45.8]} 15. b3
{[%clk 0:02:25.5]} 15... a6 {[%clk 0:02:44.6]} 16. Nd4 {[%clk 0:02:23]} 16...
Rfc8 {[%clk 0:02:42.7]} 17. Kf1 {[%clk 0:02:19.4]} 17... h5 {[%clk 0:02:40.4]}
18. Qd2 {[%clk 0:02:18.4]} 18... Qe5 {[%clk 0:02:21.2]} 19. Nf3 {[%clk
0:02:16.9]} 19... Qc5 {[%clk 0:02:19.9]} 20. Qb2+ {[%clk 0:02:13.6]} 20... Kg8
{[%clk 0:02:18.4]} 21. Rd5 {[%clk 0:02:13]} 21... Qb6 {[%clk 0:02:16.5]} 22.
Rad1 {[%clk 0:02:10.8]} 22... Nb4 {[%clk 0:01:58.7]} 23. Rg5 {[%clk 0:02:09.3]}
23... Rc5 {[%clk 0:01:58.1]} 24. a3 {[%clk 0:02:02.4]} 24... Rxg5 {[%clk
0:01:55.5]} 25. Nxg5 {[%clk 0:02:01.9]} 25... Nc6 {[%clk 0:01:56.1]} 26. b4
{[%clk 0:01:51.9]} 26... Rc8 {[%clk 0:01:51.4]} 27. Ne4 {[%clk 0:01:36]} 27...
Ne5 {[%clk 0:01:34.5]} 28. c5 {[%clk 0:01:35.2]} 28... Qc6 {[%clk 0:01:28.8]}
29. Qd4 {[%clk 0:01:33.1]} 29... f5 {[%clk 0:01:11]} 30. cxd6 {[%clk 0:01:13.6]}
30... Qb5+ {[%clk 0:01:05.5]} 31. Kg1 {[%clk 0:01:07.3]} 31... fxe4 {[%clk
0:01:05.1]} 32. dxe7 {[%clk 0:00:58.1]} 32... Re8 {[%clk 0:00:52.3]} 33. Qxe4
{[%clk 0:00:52.8]} 33... Rxe7 {[%clk 0:00:48.2]} 34. Rd5 {[%clk 0:00:45.6]}
34... Qc4 {[%clk 0:00:40.4]} 35. Qxc4 {[%clk 0:00:40.5]} 35... Nxc4 {[%clk
0:00:41.3]} 36. a4 {[%clk 0:00:39.7]} 36... Ne5 {[%clk 0:00:38.4]} 37. h3 {[%clk
0:00:33.7]} 37... Kf7 {[%clk 0:00:38.2]} 38. b5 {[%clk 0:00:32.4]} 38... a5
{[%clk 0:00:37.8]} 39. b6 {[%clk 0:00:30.2]} 39... Nc6 {[%clk 0:00:37.6]} 40. g4
{[%clk 0:00:27]} 40... hxg4 {[%clk 0:00:37.5]} 41. hxg4 {[%clk 0:00:23.5]} 41...
Ke6 {[%clk 0:00:37.9]} 42. Rg5 {[%clk 0:00:20.9]} 42... Kf6 {[%clk 0:00:36.6]}
43. Rd5 {[%clk 0:00:20.7]} 43... Re4 {[%clk 0:00:27.1]} 44. Rd7 {[%clk
0:00:20.3]} 44... Rxg4+ {[%clk 0:00:25.9]} 45. Kf1 {[%clk 0:00:20.3]} 45... Rxa4
{[%clk 0:00:21.4]} 46. Rxb7 {[%clk 0:00:19.2]} 46... Rb4 {[%clk 0:00:22.3]} 47.
f4 {[%clk 0:00:15.1]} 47... a4 {[%clk 0:00:22.4]} 48. Ke2 {[%clk 0:00:11.1]}
48... a3 {[%clk 0:00:22]} 49. Kf3 {[%clk 0:00:10.8]} 49... a2 {[%clk 0:00:21.8]}
50. Rc7 {[%clk 0:00:09.6]} 50... Rxb6 {[%clk 0:00:19.3]} 0-1